fUSD/lending_fUSD_20250320
["ID","MTS","AMOUNT","RATE_DAILY","PERIOD"]
[356439063,1742455845640,-12028.3542,0.00028409,2]
[356439064,1742455845651,-2868.23311769,0.00028498,2]
[356439065,1742455845660,-500.0,0.00028499,2]
[356439066,1742455845670,-500.0,0.00028499,2]
[356439067,1742455845679,-500.0,0.00028499,2]
[356439068,1742455845688,-500.0,0.00028499,2]
[356439069,1742455845698,-500.0,0.00028499,2]
[356439070,1742455845707,-500.0,0.00028499,2]
[356439071,1742455845717,-500.0,0.00028499,2]
[356439072,1742455845727,-500.0,0.00028499,2]
[356439073,1742455845736,-500.0,0.00028499,2]
[356439074,1742455845753,-500.0,0.00028499,2]
[356439075,1742455845769,-500.0,0.00028499,2]
[356439076,1742455845780,-500.0,0.00028499,2]
[356439077,1742455845791,-500.0,0.00028499,2]
[356439078,1742455845801,-500.0,0.00028499,2]
[356439079,1742455845811,-500.0,0.00028499,2]
[356439080,1742455845821,-500.0,0.00028499,2]
[356439081,1742455845831,-500.0,0.00028499,2]
[356439082,1742455845841,-500.0,0.00028499,2]
[356439083,1742455845851,-500.0,0.00028499,2]
[356439084,1742455845861,-500.0,0.00028499,2]
[356439085,1742455845871,-500.0,0.00028499,2]
[356439086,1742455845881,-500.0,0.00028499,2]
[356439087,1742455845891,-500.0,0.00028499,2]
[356439088,1742455845901,-500.0,0.00028499,2]
[356439089,1742455845911,-500.0,0.00028499,2]
[356439090,1742455845921,-500.0,0.00028499,2]
[356439091,1742455845930,-500.0,0.00028499,2]
[356439092,1742455845939,-361.71515371,0.00028499,2]
[356439093,1742455845949,-500.0,0.00028499,2]
[356439094,1742455845959,-500.0,0.00028499,2]
[356439095,1742455845969,-500.0,0.00028499,2]
[356439096,1742455845979,-291.04925592,0.00028499,2]
[356439097,1742455845989,-500.0,0.00028499,2]
[356439098,1742455845999,-500.0,0.00028499,2]
[356439099,1742455846008,-500.0,0.00028499,2]
[356439100,1742455846018,-500.0,0.00028499,2]
[356439101,1742455846028,-500.0,0.00028499,2]
[356439102,1742455846037,-500.0,0.00028499,2]
[356439103,1742455846047,-500.0,0.00028499,2]
[356439104,1742455846056,-500.0,0.00028499,2]
[356439105,1742455846066,-500.0,0.00028499,2]
[356439106,1742455846076,-500.0,0.00028499,2]
[356439107,1742455846086,-500.0,0.00028499,2]
[356439108,1742455846095,-500.0,0.00028499,2]
[356439109,1742455846105,-495.0,0.00028499,2]
[356439110,1742455846115,-500.0,0.00028499,2]
[356439111,1742455846125,-500.0,0.00028499,2]
[356439112,1742455846134,-500.0,0.00028499,2]
[356439113,1742455846145,-500.0,0.00028499,2]
[356439114,1742455846154,-500.0,0.00028499,2]
[356439115,1742455846163,-500.0,0.00028499,2]
[356439116,1742455846173,-500.0,0.00028499,2]
[356439117,1742455846183,-500.0,0.00028499,2]
[356439118,1742455846192,-500.0,0.00028499,2]
[356439119,1742455846202,-500.0,0.00028499,2]
[356439120,1742455846212,-500.0,0.00028499,2]
[356439121,1742455846221,-500.0,0.00028499,2]
[356439122,1742455846231,-500.0,0.00028499,2]
[356439123,1742455846241,-500.0,0.00028499,2]
[356439124,1742455846250,-500.0,0.00028499,2]
[356439125,1742455846260,-500.0,0.00028499,2]
[356439126,1742455846271,-500.0,0.00028499,2]
[356439127,1742455846281,-384.04332822,0.00028499,2]
[356439128,1742455846290,-500.0,0.00028499,2]
[356439129,1742455846299,-500.0,0.00028499,2]
[356439130,1742455846309,-500.0,0.00028499,2]
[356439131,1742455846318,-500.0,0.00028499,2]
[356439132,1742455846328,-500.0,0.00028499,2]
[356439133,1742455846337,-500.0,0.00028499,2]
[356439134,1742455846347,-500.0,0.00028499,2]
[356439135,1742455846356,-500.0,0.00028499,2]
[356439136,1742455846366,-500.0,0.00028499,2]
[356439137,1742455846375,-500.0,0.00028499,2]
[356439138,1742455846385,-165.9765491,0.00028499,2]
[356439139,1742455846394,-500.0,0.00028499,2]
[356439140,1742455846403,-500.0,0.00028499,2]
[356439141,1742455846413,-500.0,0.00028499,2]
[356439142,1742455846422,-500.0,0.00028499,2]
[356439143,1742455846432,-500.0,0.00028499,2]
[356439144,1742455846441,-500.0,0.00028499,2]
[356439145,1742455846450,-500.0,0.00028499,2]
[356439146,1742455846460,-272.66838317,0.00028499,2]
[356439147,1742455846469,-500.0,0.00028499,2]
[356439148,1742455846478,-500.0,0.00028499,2]
[356439149,1742455846488,-500.0,0.00028499,2]
[356439150,1742455846497,-500.0,0.00028499,2]
[356439151,1742455846507,-500.0,0.00028499,2]
[356439152,1742455846516,-500.0,0.00028499,2]
[356439153,1742455846527,-500.0,0.00028499,2]
[356439154,1742455846537,-500.0,0.00028499,2]
[356439155,1742455846547,-500.0,0.00028499,2]
[356439156,1742455846557,-500.0,0.00028499,2]
[356439157,1742455846571,-500.0,0.00028499,2]
[356439158,1742455846581,-500.0,0.00028499,2]
[356439159,1742455846593,-500.0,0.00028499,2]
[356439160,1742455846602,-500.0,0.00028499,2]
[356439161,1742455846613,-500.0,0.00028499,2]
[356439162,1742455846623,-500.0,0.00028499,2]
[356439163,1742455846632,-500.0,0.00028499,2]
[356439164,1742455846645,-500.0,0.00028499,2]
[356439165,1742455846656,-500.0,0.00028499,2]
[356439166,1742455846665,-500.0,0.00028499,2]
[356439167,1742455846675,-500.0,0.00028499,2]
[356439168,1742455846684,-500.0,0.00028499,2]
[356439169,1742455846694,-500.0,0.00028499,2]
[356439170,1742455846703,-500.0,0.00028499,2]
[356439171,1742455846713,-500.0,0.00028499,2]
[356439172,1742455846723,-500.0,0.00028499,2]
[356439173,1742455846732,-500.0,0.00028499,2]
[356439174,1742455846742,-500.0,0.00028499,2]
[356439175,1742455846752,-500.0,0.00028499,2]
[356439176,1742455846762,-500.0,0.00028499,2]
[356439177,1742455846772,-500.0,0.00028499,2]
[356439178,1742455846782,-500.0,0.00028499,2]
[356439179,1742455846791,-500.0,0.00028499,2]
[356439180,1742455846801,-500.0,0.00028499,2]
[356439181,1742455846811,-500.0,0.00028499,2]
[356439182,1742455846820,-407.40343602,0.00028499,2]
[356439183,1742455846830,-500.0,0.00028499,2]
[356439184,1742455846839,-500.0,0.00028499,2]
[356439185,1742455846848,-500.0,0.00028499,2]
[356439186,1742455846858,-300.0,0.00028499,2]
[356439187,1742455846867,-397.29,0.00028499,2]
[356439188,1742455846877,-500.0,0.000285,7]
[356439189,1742455846887,-500.0,0.000285,7]
[356439190,1742455846897,-500.0,0.000285,7]
[356439191,1742455846906,-500.0,0.000285,7]
[356439192,1742455846916,-500.0,0.000285,7]
[356439193,1742455846925,-500.0,0.000285,7]
[356439194,1742455846934,-3642.9222,0.00028508,2]
[356439195,1742455846944,-1797.8692,0.00028508,2]
[356439196,1742455846953,-500.0,0.00028509,2]
[356439197,1742455846963,-1000.0,0.00028509,2]
[356439198,1742455846972,-163.19339892,0.00028518,2]
[356439199,1742455846982,-150.00032385,0.00028563,2]
[356439200,1742455846992,-500.0,0.00028563,2]
[356439201,1742455847001,-500.0,0.00028563,2]
[356439202,1742455847010,-500.0,0.00028563,2]
[356439203,1742455847020,-500.0,0.00028563,2]
[356439204,1742455847030,-8035.5511,0.00028564,2]
[356439205,1742455847040,-175.12041,0.0002859,42]
[356439206,1742455847049,-125.83294701,0.00028608,2]
[356439207,1742455847064,-374.16705299,0.00028608,2]
[356439208,1742455847074,-500.0,0.00028608,2]
[356439209,1742455847084,-500.0,0.00028608,2]
[356439210,1742455847093,-151.0,0.00028654,2]
[356439211,1742455847102,-1194.32,0.00028662,2]
[356439212,1742455847111,-358.78824178,0.00028662,2]
[356439213,1742455847123,-141.21175822,0.00028662,2]
[356439214,1742455847133,-150.0,0.00028697,2]
[356439215,1742455847143,-5704.93862714,0.00028708,3]
[356439216,1742455857035,-382.2592,0.000285,7]
[356439221,1742456340726,-181.19713606,0.00021,2]
[356439244,1742457031652,-68.80286394,0.00021,2]
[356439245,1742457031661,-584.97324448,0.00023467,2]
[356439246,1742457031740,-44.58926292,0.00023467,2]
[356439247,1742457031750,-502.0,0.00024,2]
[356439248,1742457031760,-158.0,0.00025735,2]
[356439249,1742457031770,-26.86275967,0.00026462,2]
[356439250,1742457031907,-910.13713743,0.00026462,2]
[356439251,1742457031917,-244.42,0.00026849,2]
[356439252,1742457031927,-548.56913582,0.00027,7]
[356439253,1742457031936,-130.92792128,0.00027136,4]
[356439254,1742457031949,-657.16800943,0.00027136,4]
[356439255,1742457031958,-191.13,0.00027215,120]
[356439256,1742457031969,-5198.05377367,0.0002722,2]
[356439257,1742457031982,-1825.60886287,0.0002722,2]
[356439259,1742457032021,-283.7208,0.0002722,2]
[356439308,1742457039787,-21967.01602755,0.0002722,2]
[356439309,1742457039798,-23900.0,0.00027236,2]
[356439310,1742457039809,-593.16569055,0.00027338,2]
[356439311,1742457039819,-301.02,0.00027584,2]
[356439312,1742457039829,-150.0,0.00027601,7]
[356439313,1742457039839,-250.0,0.00027619,2]
[356439314,1742457039848,-154.56,0.00027686,2]
[356439315,1742457039859,-613.61,0.00027687,2]
[356439316,1742457039868,-200.0,0.00027698,2]
[356439317,1742457039877,-1000.0,0.00027741,2]
[356439318,1742457039886,-613.61,0.0002776,2]
[356439319,1742457039897,-788.09593071,0.00027775,5]
[356439320,1742457039906,-613.61,0.00027833,2]
[356439321,1742457039915,-268.09,0.00027875,2]
[356439322,1742457039925,-6455.43868615,0.00027896,2]
[356439323,1742457039935,-205.27581378,0.000279,4]
[356439324,1742457039946,-613.61,0.00027906,2]
[356439325,1742457039955,-613.61,0.00027979,2]
[356439326,1742457039965,-150.0,0.00027979,2]
[356439327,1742457039978,-158.0,0.00027999,2]
[356439328,1742457039990,-269.0599437,0.00028016,4]
[356439329,1742457040000,-613.61,0.00028051,2]
[356439330,1742457040010,-613.61,0.00028124,2]
[356439331,1742457040019,-613.61,0.00028197,2]
[356439332,1742457040029,-613.61,0.0002827,2]
[356439333,1742457040038,-613.61,0.00028343,2]
[356439334,1742457040048,-181.7523,0.00028399,2]
[356439335,1742457040058,-613.61,0.00028416,2]
[356439336,1742457040067,-613.61,0.00028489,2]
[356439337,1742457040076,-168.6408,0.000285,7]
[356439338,1742457040086,-500.0,0.000285,7]
[356439339,1742457040096,-1161.0,0.000285,2]
[356439340,1742457040106,-166.66,0.00028509,2]
[356439341,1742457040116,-613.61,0.00028561,2]
[356439342,1742457040125,-317.7368,0.00028573,2]
[356439343,1742457040135,-915.7871,0.00028573,2]
[356439344,1742457040146,-818.3198,0.00028573,2]
[356439345,1742457040155,-1029.259,0.000286,20]
[356439346,1742457040164,-945.8996,0.00028617,2]
[356439347,1742457040174,-613.61,0.00028634,2]
[356439348,1742457040184,-1000.0,0.00028663,2]
[356439349,1742457040194,-180.80925,0.00028697,42]
[356439350,1742457040204,-161.10206231,0.00028697,120]
[356439351,1742457040215,-150.0,0.000287,2]
[356439352,1742457040226,-150.0,0.000287,2]
[356439353,1742457040236,-613.61,0.00028707,2]
[356439354,1742457040246,-11238.53416806,0.00028727,12]
[356439355,1742457040257,-454.23321571,0.00028727,2]
[356439356,1742457040267,-557.64077372,0.00028727,2]
[356439357,1742457040276,-500.0,0.00028727,2]
[356439358,1742457040286,-500.0,0.00028727,2]
[356439359,1742457040295,-237.62665817,0.00028727,2]
[356439360,1742457040305,-500.0,0.00028727,2]
[356439361,1742457040315,-372.35549317,0.00028727,2]
[356439362,1742457040324,-500.0,0.00028727,2]
[356439363,1742457040333,-500.0,0.00028727,2]
[356439364,1742457040342,-500.0,0.00028727,2]
[356439365,1742457040352,-500.0,0.00028727,2]
[356439366,1742457040361,-534.33589871,0.00028727,2]
[356439368,1742457040371,-500.0,0.00028727,2]
[356439370,1742457040380,-194.06343512,0.00028727,2]
[356439372,1742457040389,-500.0,0.00028727,2]
[356439374,1742457040398,-500.0,0.00028727,2]
[356439376,1742457040408,-500.0,0.00028727,2]
[356439378,1742457040418,-277.7955142,0.00028727,2]
[356439379,1742457040427,-500.0,0.00028727,2]
[356439380,1742457040437,-400.25680397,0.00028727,2]
[356439381,1742457040447,-500.0,0.00028727,2]
[356439382,1742457040456,-500.0,0.00028727,2]
[356439383,1742457040465,-500.0,0.00028727,2]
[356439384,1742457040475,-500.0,0.00028727,2]
[356439385,1742457040484,-500.0,0.00028727,2]
[356439386,1742457040495,-500.0,0.00028727,2]
[356439387,1742457040504,-500.0,0.00028727,2]
[356439388,1742457040514,-502.58780539,0.00028727,2]
[356439389,1742457040523,-205.70865146,0.00028727,2]
[356439390,1742457040533,-500.0,0.00028727,2]
[356439391,1742457040543,-500.0,0.00028727,2]
[356439392,1742457040553,-500.0,0.00028727,2]
[356439393,1742457040562,-500.0,0.00028727,2]
[356439394,1742457040573,-500.0,0.00028727,2]
[356439395,1742457040582,-500.0,0.00028727,2]
[356439396,1742457040592,-500.0,0.00028727,2]
[356439397,1742457040602,-316.45523215,0.00028727,2]
[356439398,1742457040611,-500.0,0.00028727,2]
[356439399,1742457040621,-500.0,0.00028727,2]
[356439400,1742457040631,-500.0,0.00028727,2]
[356439401,1742457040641,-500.0,0.00028727,2]
[356439402,1742457040651,-500.0,0.00028727,2]
[356439403,1742457040661,-500.0,0.00028727,2]
[356439404,1742457040671,-558.92550887,0.00028727,2]
[356439405,1742457040680,-500.0,0.00028727,2]
[356439406,1742457040689,-500.0,0.00028727,2]
[356439407,1742457040699,-500.0,0.00028727,2]
[356439408,1742457040708,-500.0,0.00028727,2]
[356439409,1742457040719,-374.96658374,0.00028727,2]
[356439410,1742457040729,-500.0,0.00028727,2]
[356439411,1742457040739,-500.0,0.00028727,2]
[356439412,1742457040749,-500.0,0.00028727,2]
[356439413,1742457040758,-500.0,0.00028727,2]
[356439414,1742457040768,-500.0,0.00028727,2]
[356439415,1742457040777,-500.0,0.00028727,2]
[356439416,1742457040787,-468.9202669,0.00028727,2]
[356439417,1742457040797,-500.0,0.00028727,2]
[356439418,1742457040807,-63823.39,0.00028727,2]
[356439419,1742457040816,-500.0,0.00028727,2]
[356439420,1742457040826,-395.25253423,0.00028727,2]
[356439421,1742457040835,-500.0,0.00028727,2]
[356439422,1742457040845,-500.0,0.00028727,2]
[356439423,1742457040854,-500.0,0.00028727,2]
[356439424,1742457040864,-2500.0,0.00028737,2]
[356439425,1742457040874,-500.0,0.00028739,2]
[356439426,1742457040884,-500.0,0.00028739,2]
[356439427,1742457040894,-500.0,0.00028739,2]
[356439428,1742457040904,-500.0,0.00028739,2]
[356439429,1742457040913,-500.0,0.00028739,2]
[356439430,1742457040922,-472.03,0.00028739,2]
[356439431,1742457040933,-150.0,0.00028754,2]
[356439432,1742457040943,-166.5,0.00028765,15]
[356439433,1742457040953,-503.31838654,0.00028773,5]
[356439434,1742457040962,-613.61,0.0002878,2]
[356439435,1742457040974,-500.0,0.00028781,2]
[356439436,1742457040991,-500.0,0.00028781,2]
[356439437,1742457041002,-500.0,0.00028781,2]
[356439438,1742457041011,-500.0,0.00028781,2]
[356439439,1742457041021,-500.0,0.00028781,2]
[356439440,1742457041031,-500.0,0.00028781,2]
[356439441,1742457041042,-415.00067633,0.00028781,2]
[356439442,1742457041053,-500.0,0.00028781,2]
[356439443,1742457041063,-500.0,0.00028781,2]
[356439444,1742457041072,-258.23644727,0.00028782,2]
[356439445,1742457041082,-254.08834808,0.00028782,2]
[356439446,1742457041091,-500.0,0.00028782,2]
[356439447,1742457041101,-63823.39,0.00028782,2]
[356439448,1742457041111,-150.0,0.00028786,2]
[356439449,1742457041121,-150.0,0.00028799,2]
[356439450,1742457041133,-150.0,0.000288,7]
[356439451,1742457041144,-150.0,0.000288,2]
[356439452,1742457041153,-150.0,0.000288,2]
[356439453,1742457041163,-150.0,0.00028807,2]
[356439455,1742457041174,-151.29824826,0.00028814,2]
[356439456,1742457041185,-150.0,0.00028814,2]
[356439457,1742457041195,-271.22041073,0.00028818,2]
[356439458,1742457041206,-150.0,0.00028832,2]
[356439459,1742457041216,-150.0,0.00028836,2]
[356439460,1742457041226,-151.0,0.00028837,7]
[356439461,1742457041237,-485.78238143,0.00028837,2]
[356439462,1742457041248,-63823.39,0.00028837,2]
[356439463,1742457041258,-841.7581,0.00028846,2]
[356439464,1742457041267,-613.61,0.00028853,2]
[356439465,1742457041277,-150.0,0.00028858,2]
[356439466,1742457041286,-1000.0,0.00028859,2]
[356439467,1742457041295,-151.0,0.00028859,7]
[356439468,1742457041305,-151.0,0.00028859,7]
[356439470,1742457041316,-151.0,0.00028859,7]
[356439471,1742457041326,-151.0,0.00028881,7]
[356439472,1742457041336,-152.57605,0.00028881,7]
[356439473,1742457041349,-151.0,0.00028881,7]
[356439474,1742457041359,-151.0,0.00028881,7]
[356439475,1742457041369,-151.0,0.00028881,7]
[356439476,1742457041379,-152.43078074,0.00028882,2]
[356439477,1742457041388,-7597.39968438,0.00028882,3]
[356439478,1742457041399,-190.37,0.00028883,10]
[356439479,1742457041408,-150.0,0.00028883,2]
[356439480,1742457041418,-1000.0,0.00028886,2]
[356439481,1742457041428,-150.0,0.0002889,2]
[356439482,1742457041437,-63823.39,0.00028892,2]
[356439483,1742457041447,-151.0,0.00028892,7]
[356439484,1742457041457,-153.080743,0.00028892,7]
[356439485,1742457041466,-151.0,0.00028899,7]
[356439486,1742457041475,-228.255069,0.00028899,7]
[356439487,1742457041485,-151.0,0.00028899,7]
[356439488,1742457041495,-151.0,0.00028899,7]
[356439489,1742457041504,-150.0,0.00028901,2]
[356439490,1742457041514,-150.0,0.00028911,2]
[356439491,1742457041524,-613.61,0.00028926,2]
[356439492,1742457041534,-150.0,0.00028934,2]
[356439493,1742457041543,-167.126946,0.00028935,7]
[356439494,1742457041553,-151.0,0.00028936,7]
[356439495,1742457041563,-151.0,0.00028936,7]
[356439496,1742457041572,-151.0,0.00028936,7]
[356439497,1742457041581,-10129.8662458,0.00028936,3]
[356439498,1742457041591,-151.0,0.00028938,7]
[356439499,1742457041601,-150.0,0.00028938,2]
[356439500,1742457041611,-151.0,0.00028938,7]
[356439501,1742457041621,-729.650563,0.00028938,7]
[356439502,1742457041631,-151.0,0.00028938,7]
[356439503,1742457041641,-729.650563,0.00028938,7]
[356439504,1742457041650,-151.0,0.00028938,7]
[356439505,1742457041659,-151.0,0.00028938,7]
[356439506,1742457041669,-151.0,0.00028946,7]
[356439507,1742457041678,-151.0,0.00028946,7]
[356439508,1742457041688,-151.0,0.00028946,7]
[356439509,1742457041699,-151.0,0.00028946,7]
[356439510,1742457041709,-151.0,0.00028946,7]
[356439511,1742457041719,-63823.39,0.00028946,2]
[356439512,1742457041729,-181.38382,0.00028946,7]
[356439513,1742457041739,-150.94890671,0.00028964,2]
[356439514,1742457041749,-1266.23328073,0.00028974,3]
[356439515,1742457041759,-150.0,0.00028977,2]
[356439516,1742457041769,-987.81601524,0.00028984,2]
[356439517,1742457041929,-150.0,0.00028984,2]
[356439518,1742457041938,-150.0,0.00028986,2]
[356439519,1742457041948,-2532.46656146,0.0002899,3]
[356439520,1742457041957,-151.588042,0.00028991,7]
[356439521,1742457041967,-151.0,0.00028991,7]
[356439522,1742457041981,-151.0,0.00028991,7]
[356439523,1742457041990,-7597.39968438,0.00028991,3]
[356439524,1742457042000,-613.61,0.00028999,2]
[356439525,1742457042009,-704.0,0.00028999,5]
[356439526,1742457042019,-150.0,0.00028999,2]
[356439527,1742457042028,-151.0,0.00028999,7]
[356439528,1742457042038,-151.0,0.00028999,7]
[356439529,1742457042047,-17257.725,0.00029,15]
[356439530,1742457042058,-151.0,0.00029,7]
[356439531,1742457042068,-729.650563,0.00029,7]
[356439532,1742457042077,-151.0,0.00029,7]
[356439533,1742457042087,-729.650563,0.00029,7]
[356439534,1742457042096,-167.646386,0.00029,7]
[356439535,1742457042106,-151.0,0.00029,7]
[356439536,1742457042116,-151.0,0.00029001,7]
[356439537,1742457042126,-183.62929,0.00029001,7]
[356439538,1742457042136,-151.0,0.00029001,7]
[356439539,1742457042145,-164.029891,0.00029001,7]
[356439540,1742457042154,-203.109066,0.00029001,7]
[356439541,1742457042164,-151.0,0.00029001,7]
[356439542,1742457042173,-151.0,0.00029001,7]
[356439543,1742457042183,-63823.39,0.00029001,2]
[356439544,1742457042193,-150.7105133,0.00029004,2]
[356439545,1742457042202,-150.0,0.00029033,2]
[356439546,1742457042212,-151.0,0.00029046,7]
[356439547,1742457042221,-151.0,0.00029046,7]
[356439548,1742457042231,-1144.56,0.00029053,2]
[356439549,1742457042241,-500.0,0.00029053,2]
[356439550,1742457042250,-409.15253521,0.00029053,2]
[356439551,1742457042260,-151.0,0.00029056,7]
[356439552,1742457042269,-63823.39,0.00029056,2]
[356439553,1742457042280,-265.891581,0.00029056,7]
[356439554,1742457042289,-729.650563,0.00029056,7]
[356439555,1742457042299,-151.0,0.00029056,7]
[356439556,1742457042310,-729.650563,0.00029056,7]
[356439557,1742457042320,-151.87016,0.00029056,7]
[356439558,1742457042330,-150.0,0.00029058,2]
[356439559,1742457042339,-613.61,0.00029071,2]
[356439560,1742457042349,-438.08349405,0.00029079,2]
[356439561,1742457042358,-150.0,0.00029081,7]
[356439562,1742457042369,-268.4693,0.00029099,2]
[356439563,1742457042378,-3498.5549,0.00029099,2]
[356439564,1742457042387,-151.0,0.00029101,7]
[356439565,1742457042397,-151.0,0.00029101,7]
[356439566,1742457042406,-151.0,0.00029101,7]
[356439567,1742457042415,-151.0,0.00029101,7]
[356439568,1742457042425,-151.0,0.00029101,7]
[356439569,1742457042435,-1144.56,0.00029108,2]
[356439570,1742457042444,-500.0,0.00029108,2]
[356439571,1742457042454,-150.0,0.00029108,7]
[356439572,1742457042464,-151.52848,0.00029109,7]
[356439573,1742457042474,-151.0,0.00029109,7]
[356439574,1742457042483,-151.0,0.00029109,7]
[356439575,1742457042493,-154.274776,0.00029109,7]
[356439576,1742457042503,-151.0,0.00029109,7]
[356439577,1742457042512,-151.0,0.00029109,7]
[356439578,1742457042522,-151.0,0.00029109,7]
[356439579,1742457042531,-151.0,0.00029109,7]
[356439580,1742457042540,-151.0,0.00029109,7]
[356439581,1742457042550,-151.0,0.00029109,7]
[356439582,1742457042559,-151.0,0.00029109,7]
[356439583,1742457042569,-151.0,0.00029109,7]
[356439585,1742457042579,-151.0,0.00029109,7]
[356439586,1742457042588,-151.0,0.00029109,7]
[356439587,1742457042598,-151.0,0.00029109,7]
[356439588,1742457042607,-151.0,0.00029109,7]
[356439589,1742457042617,-151.0,0.00029109,7]
[356439590,1742457042627,-151.0,0.00029109,7]
[356439591,1742457042636,-151.0,0.00029109,7]
[356439592,1742457042646,-151.0,0.00029109,7]
[356439593,1742457042655,-151.0,0.00029109,7]
[356439594,1742457042665,-167.146495,0.00029109,7]
[356439595,1742457042674,-167.146495,0.00029109,7]
[356439596,1742457042684,-151.0,0.00029111,7]
[356439597,1742457042694,-63823.39,0.00029111,2]
[356439598,1742457042703,-729.650563,0.00029111,7]
[356439599,1742457042712,-151.0,0.00029111,7]
[356439600,1742457042722,-729.650563,0.00029111,7]
[356439601,1742457042731,-191.993,0.00029136,7]
[356439602,1742457042741,-151.0,0.00029163,7]
[356439603,1742457042751,-151.0,0.00029163,7]
[356439604,1742457042760,-151.0,0.00029163,7]
[356439605,1742457042770,-1144.56,0.00029163,2]
[356439606,1742457042780,-500.0,0.00029163,2]
[356439607,1742457042789,-151.0,0.00029164,7]
[356439608,1742457042799,-63823.39,0.00029166,2]
[356439609,1742457042808,-500.0,0.00029173,5]
[356439610,1742457042818,-151.0,0.000292,7]
[356439611,1742457042828,-151.0,0.000292,7]
[356439612,1742457042837,-151.0,0.000292,7]
[356439613,1742457042847,-151.0,0.000292,7]
[356439614,1742457042856,-211.983952,0.000292,7]
[356439615,1742457042866,-151.0,0.000292,7]
[356439616,1742457042875,-151.0,0.000292,7]
[356439617,1742457042884,-151.0,0.000292,7]
[356439618,1742457042894,-151.0,0.000292,7]
[356439619,1742457042904,-151.0,0.000292,7]
[356439620,1742457042914,-151.0,0.000292,7]
[356439621,1742457042924,-167.146495,0.000292,7]
[356439622,1742457042934,-167.146495,0.000292,7]
[356439623,1742457042944,-151.0,0.000292,7]
[356439624,1742457042953,-151.0,0.000292,7]
[356439625,1742457042963,-151.0,0.000292,7]
[356439626,1742457042975,-151.0,0.000292,7]
[356439627,1742457042988,-729.650563,0.000292,7]
[356439628,1742457042998,-151.0,0.000292,7]
[356439629,1742457043008,-729.650563,0.000292,7]
[356439630,1742457043017,-9171.44,0.000292,2]
[356439631,1742457043028,-1144.56,0.00029218,2]
[356439632,1742457043037,-240.5817705,0.00029218,2]
[356439633,1742457043047,-63823.39,0.0002922,2]
[356439634,1742457043057,-182.888457,0.00029265,7]
[356439635,1742457043068,-151.0,0.00029265,7]
[356439636,1742457043077,-1144.56,0.00029272,2]
[356439637,1742457043087,-151.0,0.00029273,7]
[356439638,1742457043096,-151.0,0.00029273,7]
[356439639,1742457043105,-241.727907,0.00029273,7]
[356439640,1742457043115,-164.81466,0.00029273,7]
[356439641,1742457043125,-151.0,0.00029273,7]
[356439642,1742457043134,-151.0,0.00029273,7]
[356439643,1742457043144,-151.0,0.00029273,7]
[356439644,1742457043153,-167.146495,0.00029273,7]
[356439645,1742457043162,-167.146495,0.00029273,7]
[356439646,1742457043171,-151.0,0.00029273,7]